{"text_format":"1","workbook":"xlsx","n_sheets":2,"sheets":["Лист1","Лист2"],"not_rendered":{"charts":0,"images":0,"macros":1,"external_links":0,"defined_names":2,"comments":0,"pivot_tables":1},"unopened":[],"bounds":{"document_bytes":16777216,"sheet_cells":100000,"rows_first":2000,"rows_last":500,"rows_between":2000,"halvings":0,"cell_chars":16384,"cell_head_chars":4096},"cells_cut":0,"cells_raw":0,"read":"whole","date_system":"1900"}

{"sheet":"Лист1","index":0,"n_rows":52,"n_cols":10,"rows_kept":52,"cut":false,"hidden":false,"merged":[]}
[]
[null,"ФИО","Дат","статус",null,{"$f":"OFFSET(Лист1!C3,,,COUNTA(Лист1!C:C)-1)","v":"2014-05-01"},null,{"$f":"Список","v":"Квакушкина"},41764,"в работе"]
[null,"Иванов","2014-05-01","завершено",null,"2014-05-02"]
[null,"Петров","2014-05-02","завершено",null,"2014-05-03"]
[null,"Сидоров","2014-05-03","завершено",null,"2014-05-04"]
[null,"Кукушкина","2014-05-04","в работе",null,"2014-05-05"]
[null,"Квакушкина","2014-05-05","в работе",null,"2014-05-06"]
[null,"Иванова","2014-05-06","завершено",null,"2014-05-07"]
[null,"Петрова","2014-05-07","завершено",null,"2014-05-08"]
[null,"Слесаренко","2014-05-08","завершено",null,"2014-05-09"]
[null,"Сидоренко","2014-05-09","в работе",null,"2014-05-10"]
[null,"Комунарка","2014-05-10","в работе",null,"2014-05-11"]
[null,"Иванов","2014-05-11","завершено",null,"2014-05-11"]
[null,"Петров","2014-05-11","завершено",null,"2014-05-13"]
[null,"Сидоров","2014-05-13","завершено",null,"2014-05-14"]
[null,"Кукушкина","2014-05-14","в работе",null,"2014-05-15"]
[null,"Квакушкина","2014-05-15","в работе",null,"2014-05-16"]
[null,"Иванова","2014-05-16","завершено",null,"2014-05-16"]
[null,"Петрова","2014-05-16","завершено",null,"2014-05-18"]
[null,"Слесаренко","2014-05-18","завершено",null,"2014-05-19"]
[null,"Сидоренко","2014-05-19","в работе",null,"2014-05-20"]
[null,"Комунарка","2014-05-20","в работе",null,"2014-05-21"]
[null,"Иванов","2014-05-21","завершено",null,"2014-05-22"]
[null,"Петров","2014-05-22","завершено",null,"2014-05-23"]
[null,"Сидоров","2014-05-23","завершено",null,"2014-05-24"]
[null,"Кукушкина","2014-05-24","в работе",null,"2014-05-25"]
[null,"Квакушкина","2014-05-25","в работе",null,"2014-05-26"]
[null,"Иванова","2014-05-26","завершено",null,"2014-05-27"]
[null,"Иванов","2014-05-27","завершено",null,"2014-05-28"]
[null,"Петров","2014-05-28","завершено",null,"2014-05-29"]
[null,"Сидоров","2014-05-29","в работе",null,"2014-05-30"]
[null,"Кукушкина","2014-05-30","в работе",null,"2014-05-31"]
[null,"Квакушкина","2014-05-31","завершено",null,"2014-06-01"]
[null,"Иванова","2014-06-01","завершено",null,"2014-06-02"]
[null,"Петрова","2014-06-02","завершено",null,"2014-06-03"]
[null,"Слесаренко","2014-06-03","в работе",null,"2014-06-04"]
[null,"Сидоренко","2014-06-04","в работе",null,"2014-06-05"]
[null,"Комунарка","2014-06-05","завершено",null,"2014-06-06"]
[null,"Иванов","2014-06-06","завершено",null,"2014-06-07"]
[null,"Петров","2014-06-07","завершено",null,"2014-06-08"]
[null,"Сидоров","2014-06-08","в работе",null,"2014-06-09"]
[null,"Кукушкина","2014-06-09","в работе",null,"2014-06-10"]
[null,"Квакушкина","2014-06-10","завершено",null,"2014-06-11"]
[null,"Иванова","2014-06-11","завершено",null,"2014-06-12"]
[null,"Петрова","2014-06-12","завершено",null,"2014-06-13"]
[null,"Слесаренко","2014-06-13","в работе",null,"2014-06-14"]
[null,"Сидоренко","2014-06-14","в работе",null,"2014-06-15"]
[null,"Комунарка","2014-06-15","завершено",null,"2014-06-16"]
[null,"Иванов","2014-06-16","завершено",null,"2014-06-17"]
[null,"Петров","2014-06-17","завершено",null,"2014-06-18"]
[null,"Сидоров","2014-06-18","в работе",null,{"$error":"#N/A"}]
[null,null,null,null,null,{"$error":"#N/A"}]

{"sheet":"Лист2","index":1,"n_rows":51,"n_cols":13,"rows_kept":51,"cut":false,"hidden":false,"merged":[]}
[null,null,null,"С","2014-05-05",null,null,{"$f":"Лист1!B2","v":"ФИО"},{"$f":"Лист1!C2","v":"Дат"},{"$f":"Лист1!D2","v":"статус"}]
[null,null,null,"По","2014-05-11",null,null,{"$f":"IFERROR(INDEX(Список,ROW()-1,{1,2,3}),\"\")","v":"Квакушкина"},"2014-05-05","в работе",null,"Список имен"]
[null,null,null,null,null,null,null,"Иванова","2014-05-06","завершено",null,"Список","=ДВССЫЛ(\"Лист1!R\"&ПОИСКПОЗ(Лист2!$E$1;СМЕЩ(Лист1!G4;;;СЧЁТЗ(Лист1!G:G)-1);0)+2&\"C2:R\"&ПОИСКПОЗ(Лист2!$E$2;СМЕЩ(Лист1!G4;;;СЧЁТЗ(Лист1!G:G)-1))+2&\"C4\";0)"]
[null,null,"_","статусы",null,null,null,"Петрова","2014-05-07","завершено",null,"табл","=СМЕЩ(Лист2!$H$1;;;СЧЁТЕСЛИ(Лист2!$H:$H;\">\"\"\"\"\");3)"]
[null,null,"ФИО","в работе","завершено","Общий итог",null,"Слесаренко","2014-05-08","завершено"]
[null,null,"Иванов",null,1,1,null,"Сидоренко","2014-05-09","в работе"]
[null,null,"Иванова",null,1,1,null,"Комунарка","2014-05-10","в работе"]
[null,null,"Квакушкина",1,null,1,null,"Иванов","2014-05-11","завершено"]
[null,null,"Комунарка",1,null,1,null,"Петров","2014-05-11","завершено"]
[null,null,"Петров",null,1,1,null,"","",""]
[null,null,"Петрова",null,1,1,null,"","",""]
[null,null,"Сидоренко",1,null,1,null,"","",""]
[null,null,"Слесаренко",null,1,1,null,"","",""]
[null,null,"Общий итог",3,5,8,null,"","",""]
[null,null,null,null,null,null,null,"","",""]
[null,null,null,null,null,null,null,"","",""]
[null,null,null,null,null,null,null,"","",""]
[null,null,null,null,null,null,null,"","",""]
[null,null,null,null,null,null,null,"","",""]
[null,null,null,null,null,null,null,"","",""]
[null,null,null,null,null,null,null,"","",""]
[null,null,null,null,null,null,null,"","",""]
[null,null,null,null,null,null,null,"","",""]
[null,null,null,null,null,null,null,"","",""]
[null,null,null,null,null,null,null,"","",""]
[null,null,null,null,null,null,null,"","",""]
[null,null,null,null,null,null,null,"","",""]
[null,null,null,null,null,null,null,"","",""]
[null,null,null,null,null,null,null,"","",""]
[null,null,null,null,null,null,null,"","",""]
[null,null,null,null,null,null,null,"","",""]
[null,null,null,null,null,null,null,"","",""]
[null,null,null,null,null,null,null,"","",""]
[null,null,null,null,null,null,null,"","",""]
[null,null,null,null,null,null,null,"","",""]
[null,null,null,null,null,null,null,"","",""]
[null,null,null,null,null,null,null,"","",""]
[null,null,null,null,null,null,null,"","",""]
[null,null,null,null,null,null,null,"","",""]
[null,null,null,null,null,null,null,"","",""]
[null,null,null,null,null,null,null,"","",""]
[null,null,null,null,null,null,null,"","",""]
[null,null,null,null,null,null,null,"","",""]
[null,null,null,null,null,null,null,"","",""]
[null,null,null,null,null,null,null,"","",""]
[null,null,null,null,null,null,null,"","",""]
[null,null,null,null,null,null,null,"","",""]
[null,null,null,null,null,null,null,"","",""]
[null,null,null,null,null,null,null,"","",""]
[null,null,null,null,null,null,null,"","",""]
[null,null,null,null,null,null,null,"","",""]